[Event "Fagernes Chess GM-Swiss 2025"]
[Site "Fagernes"]
[Date "2025.04.15"]
[Round "3.1"]
[White "Willow, Jonah B"]
[Black "Urkedal, Frode Olav Olsen"]
[Result "0-1"]
[Annotator "TA"]
[ECO "C85"]
[WhiteElo "2471"]
[BlackElo "2550"]
[PlyCount "136"]
[EventDate "2025.04.12"]
[EventCountry "NOR"]
[SourceTitle "playchess.com"]
[Source "ChessBase"]
[SourceQuality "1"]
[TimeControl "40/6000+30:2400+30"]

{[%evp 13,136,12,12,14,18,-1,0,-4,0,-6,0,0,0,0,4,0,0,0,6,0,7,-75,-79,-78,-73,-76,0,-79,-67,-73,-47,-38,-21,-23,-37,-36,-27,-35,2,-27,0,-33,-27,-88,-98,-129,-77,-80,-80,-116,-100,-211,-111,-102,-121,-85,-103,-91,-101,-83,-9,-27,-4,-10,-12,-7,320,338,361,330,354,214,220,0,0,0,0,-52,0,0,192,203,189,200,197,59,82,85,255,245,222,0,0,0,210,98,105,103,103,83,94,6,79,-8,-8,-8,-8,-1566,-1493,-3241,-2131,-29988,-492,-445,-203,-216,-194,-29979,-29980,-29980,-29980,-29980,-29981,-29979,-29980]} 1. e4 {[%emt 0:00:22]} e5 {[%emt 0:00:05]} 2. Nf3 {[%emt 0:00:18]} Nc6 {[%emt 0:00:05]} 3. Bb5 {[%emt 0:00:05]} a6 {[%emt 0:00:05]} 4. Ba4 {[%emt 0:00:05]} Nf6 {[%emt 0:00:04][%cal Bg8f6,Bf6d7,Bd7f8,Bf8g6][%mdl 32]} 5. O-O {[%emt 0:00:06]} Be7 {[%emt 0:00:05]} 6. Bxc6 {[%emt 0:00:19]} dxc6 {[%emt 0:00:07]} 7. d3 {[%emt 0:00:03]} Nd7 {[%emt 0:01:03]} 8. Be3 {[%emt 0:01:17] C85: Closed Ruy Lopez: Deferred Exchange Variation.} O-O {[%emt 0:04:58]} 9. Nc3 {[%emt 0:00:54]} Re8 {[%emt 0:01:28]} 10. a4 {[%emt 0:00:31] The position is equal. is more profitable than 10.Ne2 at the moment.} a5 {[%emt 0:01:02]} 11. h3 {[%emt 0:00:13]} Bd6 {[%emt 0:02:25]} 12. Ne2 {[%emt 0:04:11]} Nf8 {[%emt 0:06:18]} 13. Nd2 {[%emt 0:06:04]} Ng6 {[%emt 0:03:07]} 14. Ng3 {[%emt 0:11:34]} Be6 {[%emt 0:04:36]} 15. Nf5 {[%emt 0:01:58]} Bb4 $146 {[%emt 0:05:56]} (15... Qd7 16. g4 Nf4 17. Kh2 g6 18. Rg1 Kh8 19. Nxd6 cxd6 20. Nf3 f6 21. d4 g5 22. dxe5 dxe5 23. Qxd7 Bxd7 {1-0 Alexakis,D (2449)-Laddha,S (2397) Budapest Vezerkepzo GM 07 2023 (7)}) 16. g4 {[%emt 0:08:23]} Nf4 {[%emt 0:00:17]} 17. c3 {[%emt 0:07:02]} (17. Qf3 $11) 17... Bf8 $17 {[%emt 0:05:35]} (17... Nxh3+ 18. Kh2 $16) 18. Bxf4 {[%emt 0:01:33]} exf4 {[%emt 0:00:08]} 19. Nd4 {[%emt 0:01:50] [#]} h5 {[%emt 0:07:52]} 20. Kg2 {[%emt 0:08:07]} (20. Nxe6 $11 {keeps the balance.} Rxe6 21. Qf3) 20... Bc8 {[%emt 0:07:10]} 21. f3 {[%emt 0:07:14]} Ra6 {[%emt 0:09:49]} 22. Ne2 {[%emt 0:09:53]} hxg4 {[%emt 0:04:53]} (22... Qxd3 $6 23. Nxf4 Qd6 24. Nxh5 $14) 23. hxg4 {[%emt 0:00:58]} Qxd3 {[%emt 0:00:08]} 24. Nxf4 {[%emt 0:00:40]} Qd6 {[%emt 0:07:55]} 25. Nh3 {[%emt 0:03:16]} Be6 {[%emt 0:07:23]} 26. Ng5 {[%emt 0:05:59]} Qf4 {[%emt 0:06:00]} 27. Nh3 {[%emt 0:06:35]} (27. Nxe6 $5 Rxe6 28. Qe2 $17) 27... Qh6 {[%emt 0:01:45]} 28. Qe2 {[%emt 0:04:00]} (28. Qc2 $1 $11) 28... Rb6 {[%emt 0:00:06]} 29. Rfb1 {[%emt 0:01:34]} Rd8 {[%emt 0:04:12]} (29... Bd6 30. Nf1 g6) 30. Nf1 {[%emt 0:00:45]} Bb3 {[%emt 0:00:08] Inhibits Rd1. Black has more active pieces.} 31. g5 {[%emt 0:07:26]} Qd6 {[%emt 0:02:27]} 32. Nf2 {[%emt 0:02:47]} (32. Re1 $17 {is a better defense.}) 32... Be7 {[%emt 0:01:47]} (32... Qe5 $1 $19 {[%cal Re5g5]} 33. g6 Qg5+ (33... fxg6 $2 34. Ne3 $17) 34. Ng4 Qxg6 (34... fxg6 $2 35. Nfe3 $19)) 33. Qe3 {[%emt 0:00:53]} Qg6 {[%emt 0:04:42]} 34. f4 {[%emt 0:00:42]} Bc2 {[%emt 0:04:50]} 35. Re1 {[%emt 0:00:21]} Rxb2 {[%emt 0:00:05][%cal Oc2e4]} 36. Ng3 {[%emt 0:04:50][%cal Bf1g3,Bg3f5,Bf5d4][%mdl 32]} Bb3 {[%emt 0:03:21]} ({Black should try} 36... Qe6 $1 $17 {[%cal Re6c4] Hoping for ...Qc4.} 37. Re2 Qc4) 37. Nf5 $11 {[%emt 0:00:26]} Bf8 {[%emt 0:00:07] A strong pair of Bishops.} 38. Nd4 {[%emt 0:01:27]} Bc4 {[%emt 0:02:40]} 39. Qc1 $1 {[%emt 0:01:34]} Rb6 {[%emt 0:00:50][%mdl 8192]} (39... Rxf2+ $1 $11 40. Kxf2 Qh7) 40. f5 $18 {[%emt 0:00:33]} Qd6 {[%emt 0:00:04]} 41. Rh1 $1 {[%emt 0:41:47]} c5 {[%emt 0:19:29] [#]} 42. Qe3 {[%emt 0:00:00][%cal Oe3h3] Hoping for Qh3!.} g6 {[%emt 0:00:05] [#]} (42... cxd4 $2 43. Qh3 $18) 43. f6 $2 {[%emt 0:00:00]} Rb2 $1 $11 {[%emt 0:00:47]} (43... cxd4 44. Qh3) 44. Rh4 {[%emt 0:00:00]} cxd4 {[%emt 0:04:47]} 45. Qh3 {[%emt 0:00:00] [#]} ({White should try} 45. Rah1 $1 $11 Bg7 (45... dxe3 46. Rh8#) (45... Bf1+ 46. Kg1 $14) 46. Qh3 Rxf2+ (46... Be6 47. Rh8+ Bxh8 48. Qxh8#) 47. Kxf2) 45... Bg7 $1 {[%emt 0:00:53]} 46. Rh1 $1 $40 {[%emt 0:00:00][%cal Oh4h8][%mdl 128] White has some attack.} Bf1+ $2 {[%emt 0:01:40]} 47. Kxf1 $18 {[%emt 0:01:56][%cal Oh4h8]} (47. Rxf1 Bxf6 48. gxf6 Qxf6 $16) 47... Rb1+ {[%emt 0:00:11]} 48. Kg2 {[%emt 0:00:03]} Rxh1 {[%emt 0:00:07]} 49. Qxh1 {[%emt 0:00:14]} (49. Kxh1 $18 {Rh7 would kill now.} Qe6 50. fxg7 Qxh3+ 51. Rxh3 Kxg7 52. Rd3) 49... Qe5 {[%emt 0:08:33]} 50. fxg7 {[%emt 0:01:09][%csl Og7] White has a strong passed pawn} Qxg5+ $2 {[%emt 0:00:02]} (50... Kxg7 $16 51. Rh7+ Kg8) 51. Rg4 {[%emt 0:01:10]} Qh5 {[%emt 0:00:04]} 52. Rh4 {[%emt 0:01:55]} (52. Qxh5 $6 gxh5 53. Rg3 dxc3 $16) ({White must play} 52. Qc1 $1 $18 {[%cal Rc1f4]}) 52... Qg5+ $11 {[%emt 0:00:02]} 53. Rg4 $2 {[%emt 0:00:10]} (53. Kf3 $11 Kxg7 54. Ng4 (54. Rh7+ Kf8 $11)) 53... Qh5 $18 {[%emt 0:00:02]} 54. Qd1 {[%emt 0:00:31]} ({But not} 54. Qxh5 gxh5 55. Rg3 dxc3) (54. Qc1 $1 $18 {[%cal Rc1f4] is the precise move to win.}) 54... Qe5 $16 {[%emt 0:07:53]} 55. cxd4 {[%emt 0:00:46]} Rxd4 {[%emt 0:00:30]} 56. Qc1 {[%emt 0:01:16]} Rxa4 {[%emt 0:02:26]} 57. Rg5 {[%emt 0:00:41]} (57. Qh6 $16 {[%csl Gg7][%cal Rh6h8]} Qxg7 58. Qg5) 57... Qf6 {[%emt 0:02:32] [#]} (57... Rc4 $11) 58. e5 {[%emt 0:00:06]} (58. Rg3 $1 $16) 58... Qe6 $11 {[%emt 0:01:00] Really sharp!} (58... Qxg7 59. Qxc7 Qh6 60. Qd8+ Qf8 61. Qd7 $18) 59. Qxc7 {[%emt 0:00:55]} Qd5+ {[%emt 0:00:02]} 60. Kh2 $2 {[%emt 0:00:32][%mdl 8192] [#]} (60. Kg3 $11) 60... Qd2 $1 $19 {[%emt 0:01:16]} 61. Qc8+ {[%emt 0:00:29]} Kxg7 {[%emt 0:00:04]} 62. Rg2 {[%emt 0:00:30]} Rh4+ {[%emt 0:00:06]} (62... Qf4+ $142 63. Kh1 Ra1+ (63... Qxe5 64. Rxg6+ Kxg6 65. Qc2+ Qf5 66. Qxa4 $15) 64. Rg1 Qf3+ (64... Qxe5 $2 65. Rxa1 Qxa1+ 66. Kg2 $19) 65. Kh2 Qxf2+ 66. Rg2 Qf4+ 67. Rg3 Ra2+ (67... Qxe5 $2 68. Qc3 $19) 68. Kh3 Qf1+ (68... Qxe5 $2 69. Qc3 $19) 69. Kh4 Rh2+ 70. Kg4 Qe2+ 71. Kg5 Qxe5+ (71... Qe4 {gets mated.} 72. Qg8+ Kxg8 73. Kf6 Kf8 74. Rg5 Qf4+ 75. Rf5 Qxf5#) 72. Kg4 f5+ 73. Kg5 Qxg3#) 63. Nh3 {[%emt 0:00:04]} Qf4+ {[%emt 0:00:28]} (63... Qd3 $142 64. Rg3 Qe2+ 65. Kh1 Qe4+ (65... Qxe5 66. Qxb7 Rb4 67. Qg2 $17) 66. Kh2 Qxe5) 64. Rg3 {[%emt 0:00:28]} Qxe5 {[%emt 0:01:32]} 65. Qxb7 $2 {[%emt 0:00:13]} (65. Qc3 $19 Qxc3 66. Rxc3) 65... Rg4 {[%emt 0:00:20] Black mates.} 66. Qf3 {[%emt 0:00:24]} Qxg3+ {[%emt 0:00:07]} 67. Qxg3 {[%emt 0:00:03]} Rxg3 {[%emt 0:00:05]} 68. Kxg3 {[%emt 0:00:03]} a4 {[%emt 0:00:05] Weighted Error Value: White=0.43/Black=0.27 (precise)   Loses game:     	White=1     	Black=3      Missed win:     	White=2     	---        Mistake:       	White=11    	Black=6      Inaccurate:     	White=5     	Black=3      OK:         	White=15    	Black=18     Best:        	White=7     	Black=10     Strong:       	White=3     	Black=2} 0-1

[Event "Fagernes Chess GM-Swiss 2025"]
[Site "Fagernes"]
[Date "2025.04.15"]
[Round "3.2"]
[White "Jumabayev, Rinat"]
[Black "Urazayev, Arystanbek"]
[Result "1-0"]
[Annotator "TA"]
[ECO "E06"]
[WhiteElo "2549"]
[BlackElo "2467"]
[PlyCount "135"]
[EventDate "2025.04.12"]
[EventCountry "NOR"]
[SourceTitle "playchess.com"]
[Source "ChessBase"]
[SourceQuality "1"]
[TimeControl "40/6000+30:2400+30"]

{[%evp 24,135,67,69,60,52,72,29,20,25,19,26,25,23,54,45,84,74,82,78,100,120,122,104,112,112,122,109,106,134,134,134,112,124,127,137,127,95,156,158,158,156,208,208,197,197,197,197,218,218,218,208,208,195,195,171,213,258,327,324,306,316,234,244,603,235,604,508,607,803,5337,1833,4829,2136,1949,1582,29969,29970,29970,29971,29966,29972,29972,29973,29973,29974,29974,29975,29975,29976,29975,29977,29977,29978,29978,29979,29979,29980,29980,29981,29981,29982,29983,29984,29983,29984,29985,29986,29986,29987,29992,29993,29993,29994]} 1. Nf3 {[%emt 0:01:47]} Nf6 {[%emt 0:00:24]} 2. c4 {[%emt 0:00:37]} e6 {[%emt 0:00:15]} 3. g3 {[%emt 0:00:09]} d5 {[%emt 0:00:35]} 4. Bg2 {[%emt 0:00:05]} Be7 {[%emt 0:00:37]} 5. O-O {[%emt 0:00:50]} O-O {[%emt 0:00:08]} 6. d4 {[%emt 0:00:06]} a5 {[%emt 0:00:06]} 7. Nc3 {[%emt 0:09:53] E06: Closed Catalan: Early deviations.} dxc4 {[%emt 0:01:38]} 8. e3 {[%emt 0:23:18]} b6 $146 {[%emt 0:06:40]} ({Predecessor:} 8... Nbd7 9. Qe2 Nb6 10. Rd1 Nfd5 11. Ne5 Bd7 12. Rb1 Qe8 13. Bd2 Nxc3 14. Bxc3 Ba4 {1-0 Pingin,A (2447)-Kurmangaliyeva,L (2324) Tashkent President op 3rd 2024 (5)}) 9. Ne5 {[%emt 0:07:40]} Nd5 {[%emt 0:01:53]} 10. a4 {[%emt 0:10:33]} Bb7 {[%emt 0:04:17]} 11. e4 {[%emt 0:05:14]} Nxc3 {[%emt 0:14:32]} 12. bxc3 {[%emt 0:00:14]} Nd7 {[%emt 0:00:08]} (12... c5 $11) 13. Nxc4 $14 {[%emt 0:01:19]} c6 {[%emt 0:18:42]} 14. Qb3 {[%emt 0:09:49]} b5 {[%emt 0:05:52]} 15. Ba3 {[%emt 0:05:01]} ({Reject} 15. axb5 cxb5 16. Na3 (16. Qxb5 Ba6 $17) 16... b4 $11) 15... bxc4 {[%emt 0:07:32]} 16. Qxb7 {[%emt 0:00:23]} Bxa3 {[%emt 0:03:34]} 17. Rxa3 {[%emt 0:00:15]} Qc8 {[%emt 0:09:40]} 18. Qb2 {[%emt 0:06:24]} c5 {[%emt 0:01:01]} 19. Qb5 {[%emt 0:13:43]} cxd4 {[%emt 0:05:50]} 20. cxd4 {[%emt 0:01:18]} Qc7 {[%emt 0:00:05]} 21. Rc3 {[%emt 0:00:22]} Rfc8 {[%emt 0:04:13]} 22. Rfc1 {[%emt 0:00:44]} Nb6 {[%emt 0:00:28]} 23. e5 {[%emt 0:03:01]} Rab8 {[%emt 0:01:10]} 24. Qxa5 {[%emt 0:00:09]} Qd7 {[%emt 0:03:01]} 25. Qa6 {[%emt 0:00:39]} Qxa4 {[%emt 0:08:04]} (25... Qxd4 $2 {is the wrong capture.} 26. a5 $18) 26. Qxa4 {[%emt 0:00:13]} Nxa4 {[%emt 0:00:03]} 27. Rxc4 {[%emt 0:00:06]} Rxc4 {[%emt 0:00:04]} 28. Rxc4 {[%emt 0:00:08]} Rb1+ {[%emt 0:00:31]} 29. Bf1 {[%emt 0:00:05]} Nb6 {[%emt 0:00:04]} 30. Rc5 {[%emt 0:09:03]} g6 {[%emt 0:05:53] [#]} ({Black should try} 30... Rd1) 31. Rb5 $1 $16 {[%emt 0:00:10]} Rxb5 {[%emt 0:00:09]} 32. Bxb5 {[%emt 0:00:02]} h5 {[%emt 0:00:59]} (32... f6 $16 33. Kf1 (33. exf6 Kf7 $16) 33... Kf7) 33. Kg2 $18 {[%emt 0:00:18]} Nd5 {[%emt 0:03:45]} 34. Kf3 {[%emt 0:00:24]} Kg7 {[%emt 0:00:26]} 35. Bc4 {[%emt 0:01:07]} Ne7 {[%emt 0:00:24]} 36. Ke4 {[%emt 0:00:28]} Kh6 {[%emt 0:00:45]} 37. Bb3 {[%emt 0:01:15]} Kg7 {[%emt 0:00:10]} 38. Kd3 {[%emt 0:00:18]} Kf8 {[%emt 0:00:40]} 39. Kc4 {[%emt 0:01:06]} Ng8 {[%emt 0:01:49]} 40. Bc2 {[%emt 0:01:02]} Ke7 {[%emt 0:01:47]} 41. f4 {[%emt 0:16:58]} Nh6 {[%emt 0:12:41]} 42. h3 {[%emt 0:00:17]} Kd7 {[%emt 0:01:44]} 43. Kc5 {[%emt 0:00:16]} Ke7 $2 {[%emt 0:03:00]} (43... Kc7 44. d5 exd5 45. Kxd5 Kd7) 44. Kc6 $18 {[%emt 0:01:32]} Ng8 $2 {[%emt 0:01:56]} (44... Kd8 45. d5 exd5) 45. g4 $18 {[%emt 0:07:54]} hxg4 {[%emt 0:02:14]} 46. hxg4 {[%emt 0:00:02]} Nh6 {[%emt 0:01:49] [#]} 47. Bd1 $1 {[%emt 0:00:06]} Ng8 {[%emt 0:02:27]} 48. Bf3 {[%emt 0:02:30]} (48. Kc7 $142 Nh6 49. Bf3) 48... Nh6 {[%emt 0:00:47]} 49. Kc7 {[%emt 0:00:22]} Ng8 {[%emt 0:01:08]} 50. g5 {[%emt 0:02:10]} Ke8 {[%emt 0:11:01]} 51. Bc6+ {[%emt 0:00:42]} Ke7 {[%emt 0:01:01]} 52. Kc8 {[%emt 0:00:27]} Kf8 {[%emt 0:02:19]} 53. Kd7 {[%emt 0:00:24]} Ne7 {[%emt 0:00:22]} 54. Be4 {[%emt 0:00:07]} Ng8 {[%emt 0:01:00]} 55. Bxg6 {[%emt 0:04:04]} fxg6 {[%emt 0:00:09]} 56. Kxe6 {[%emt 0:00:10]} Ne7 {[%emt 0:00:20]} 57. d5 {[%emt 0:00:06]} Nf5 {[%emt 0:03:26]} 58. d6 {[%emt 0:00:18]} Ng7+ {[%emt 0:01:27]} 59. Kf6 {[%emt 0:03:48]} Nh5+ {[%emt 0:00:17]} 60. Kxg6 {[%emt 0:00:05]} Nxf4+ {[%emt 0:00:05]} 61. Kf5 {[%emt 0:00:21]} Nh5 {[%emt 0:00:29]} 62. g6 {[%emt 0:06:49]} Ng7+ {[%emt 0:00:59]} 63. Kg5 {[%emt 0:00:02]} Ke8 {[%emt 0:01:39]} 64. Kh6 {[%emt 0:00:11]} Ne6 {[%emt 0:01:34]} 65. g7 {[%emt 0:01:16]} Kf7 {[%emt 0:00:07]} 66. d7 {[%emt 0:00:12]} Kg8 {[%emt 0:00:55]} 67. Kg6 {[%emt 0:00:08]} Nd8 {[%emt 0:00:30]} 68. Kf6 {[%emt 0:00:08]} 1-0

[Event "Fagernes Chess GM-Swiss 2025"]
[Site "Fagernes"]
[Date "2025.04.15"]
[Round "3.3"]
[White "Melaa, Sondre"]
[Black "Raja Rithvik R"]
[Result "0-1"]
[Annotator "TA"]
[ECO "A13"]
[WhiteElo "2344"]
[BlackElo "2538"]
[PlyCount "64"]
[EventDate "2025.04.12"]
[EventCountry "NOR"]
[SourceTitle "playchess.com"]
[Source "ChessBase"]
[SourceQuality "1"]
[TimeControl "40/6000+30:2400+30"]

{[%evp 14,64,15,11,32,20,35,0,3,7,8,2,12,14,20,17,22,10,8,22,32,18,28,26,24,0,0,0,0,0,0,0,0,-14,0,-26,-33,-22,-50,-27,-20,-24,-34,-148,-172,-397,-366,-401,-395,-375,-389,-352,-359]} 1. c4 {[%emt 0:04:40]} e6 {[%emt 0:00:42]} 2. g3 {[%emt 0:00:29]} d5 {[%emt 0:00:30]} 3. Bg2 {[%emt 0:00:10]} Nf6 {[%emt 0:00:11]} 4. Nf3 {[%emt 0:00:11]} d4 {[%emt 0:01:03]} 5. O-O {[%emt 0:00:41]} c5 {[%emt 0:00:40]} 6. e3 {[%emt 0:00:16]} Nc6 {[%emt 0:00:12]} 7. exd4 {[%emt 0:00:21]} cxd4 {[%emt 0:00:06]} 8. d3 {[%emt 0:00:19]} h6 {[%emt 0:00:40] A13: English Opening: 1...e6.} 9. Bf4 {[%emt 0:01:20]} Nd7 {[%emt 0:00:14] is now debated instead of 9...Bd6.} 10. Na3 {[%emt 0:01:11] Nb5 is the strong threat.} Bc5 {[%emt 0:00:17] The position is equal.} 11. Nc2 {[%emt 0:00:58][%cal Ob2b4]} a5 {[%emt 0:00:12]} 12. b3 {[%emt 0:02:00][%cal Bb2b3,Bb3b4][%mdl 32]} O-O {[%emt 0:00:23]} 13. a3 {[%emt 0:01:05][%cal Ba2a3,Ba3b4,Bb4b5][%mdl 32]} e5 {[%emt 0:00:11]} 14. Bd2 {[%emt 0:00:13]} Re8 {[%emt 0:00:20]} 15. b4 {[%emt 0:01:18]} Be7 {[%emt 0:00:04]} 16. Re1 $1 {[%emt 0:03:33] Black should prevent b5.} Bf6 {[%emt 0:00:28][%cal Oe5e4]} 17. Rb1 {[%emt 0:07:08]} axb4 $146 {[%emt 0:00:28]} (17... Rb8 18. bxa5 Nc5 19. Bb4 Na4 20. Bd2 Nc5 21. Nb4 Bf5 22. Bf1 Nxa5 23. Nd5 Nc6 {½-½ Docx,S (2429)-Kenneskog,T (2266) Rilton Cup 52nd 2024 (8)}) 18. axb4 {[%emt 0:00:34]} e4 {[%emt 0:00:04]} 19. Rxe4 {[%emt 0:22:40]} Rxe4 {[%emt 0:00:07]} 20. dxe4 {[%emt 0:00:05]} Nde5 $1 {[%emt 0:00:04]} 21. b5 {[%emt 0:10:55]} Nxf3+ {[%emt 0:04:44]} 22. Bxf3 {[%emt 0:00:34]} ({Of course not} 22. Qxf3 Ne5 23. Qd1 Bg4 $15 (23... Nxc4 24. Bc1 $17)) 22... Ne5 {[%emt 0:00:27]} 23. Nb4 {[%emt 0:18:04] Inhibits Ra2.} Ra3 {[%emt 0:16:17]} 24. Rb3 {[%emt 0:00:00]} Nxf3+ {[%emt 0:13:36]} 25. Qxf3 {[%emt 0:00:00]} Ra1+ {[%emt 0:00:02]} 26. Kg2 {[%emt 0:00:00]} Be6 {[%emt 0:00:02][%cal Od8d7] [#] White must now prevent ...Qd7!.} (26... Qd7 {simplifies} 27. g4 Qxg4+ 28. Qxg4 Bxg4 29. Nd5 Be5) 27. Nd5 {[%emt 0:07:58]} Qc8 {[%emt 0:00:29][%csl Gc8][%cal Re6h3]} 28. h4 {[%emt 0:12:04]} (28. Nxf6+ $15 gxf6 29. g4 Bxc4 (29... Bxg4 $2 {loses.} 30. Qxf6 Qe6 31. Qxd4 $18) (29... Qxc4 30. Rd3 $11) 30. Rb4) 28... Qxc4 $40 {[%emt 0:19:59][%mdl 128] Black has strong attack.} 29. Nxf6+ $2 {[%emt 0:05:58]} (29. Qd3 Bxd5 30. exd5 Qxd5+ 31. Qf3) 29... gxf6 $19 {[%emt 0:00:15] Black is winning.} 30. Rd3 {[%emt 0:00:06] White is weak on the light squares} Qxb5 {[%emt 0:01:12] ( -> ...Qb1)} 31. g4 {[%emt 0:02:50] [#]} Bc4 $1 {[%emt 0:15:17]} 32. Rxd4 {[%emt 0:01:46]} Bf1+ {[%emt 0:01:31] Weighted Error Value: White=0.28 (precise) /Black=0.02 (flawless)   Mistake:       	White=2     	---        Inaccurate:     	White=2     	---        OK:         	White=8     	Black=13     Best:        	White=4     	Black=4      Strong:       	White=1     	Black=2} 0-1

[Event "Fagernes Chess GM-Swiss 2025"]
[Site "Fagernes"]
[Date "2025.04.15"]
[Round "3.4"]
[White "Kvaloy, Aksel Bu"]
[Black "Johansson, Linus"]
[Result "1/2-1/2"]
[Annotator "TA"]
[ECO "A30"]
[WhiteElo "2481"]
[BlackElo "2392"]
[PlyCount "110"]
[EventDate "2025.04.12"]
[EventCountry "NOR"]
[SourceTitle "playchess.com"]
[Source "ChessBase"]
[SourceQuality "1"]
[TimeControl "40/6000+30:2400+30"]

{[%evp 17,110,11,22,20,18,16,31,0,27,7,19,10,30,0,37,29,35,1,9,-6,0,10,25,33,31,0,0,0,0,0,0,0,0,0,0,0,0,0,5,3,14,0,8,0,0,0,0,0,0,0,0,0,38,0,9,8,8,8,27,27,16,0,0,-8,0,0,0,0,0,0,0,0,0,0,0,0,0,0,0,0,0,0,0,0,0,0,0,0,0,0,0,0,0,0,0]} 1. Nf3 {[%emt 0:00:09]} Nf6 {[%emt 0:00:14]} 2. g3 {[%emt 0:00:07]} b6 {[%emt 0:00:51]} 3. Bg2 {[%emt 0:00:12]} Bb7 {[%emt 0:00:04]} 4. c4 {[%emt 0:00:54]} g6 {[%emt 0:00:05]} 5. b3 {[%emt 0:01:13]} Bg7 {[%emt 0:00:17]} 6. Bb2 {[%emt 0:00:04]} c5 {[%emt 0:00:34]} 7. O-O {[%emt 0:00:08]} O-O {[%emt 0:00:19]} 8. d4 {[%emt 0:02:12]} cxd4 {[%emt 0:03:30]} 9. Qxd4 {[%emt 0:00:40]} Nc6 {[%emt 0:05:40]} 10. Qc3 {[%emt 0:00:34]} Qc7 {[%emt 0:01:04]} 11. Rd1 {[%emt 0:06:34][%cal Oe2e4]} a6 {[%emt 0:00:45]} 12. Na3 {[%emt 0:13:19][%cal Bb1a3,Ba3c2,Bc2e3][%mdl 32] White is slightly better.} d6 {[%emt 0:00:45]} 13. Rac1 {[%emt 0:01:04]} Nd8 {[%emt 0:01:31]} 14. Qe1 {[%emt 0:02:49]} Ne6 {[%emt 0:00:35]} 15. Nc2 {[%emt 0:00:49]} Rac8 {[%emt 0:06:30]} (15... Nc5 $5) 16. Ne3 {[%emt 0:16:54]} Qb8 {[%emt 0:00:22]} 17. Ba1 {[%emt 0:01:45]} b5 {[%emt 0:16:19]} 18. Qb4 {[%emt 0:01:29]} Ba8 {[%emt 0:00:48]} 19. Qa5 {[%emt 0:08:21]} Qc7 {[%emt 0:19:15]} 20. Qxc7 {[%emt 0:09:29]} Rxc7 {[%emt 0:01:25]} 21. cxb5 {[%emt 0:00:29] Hoping for Rxc7.} Rxc1 {[%emt 0:00:55]} 22. Rxc1 {[%emt 0:00:03]} axb5 {[%emt 0:00:07]} 23. Nd4 {[%emt 0:05:44]} Nxd4 {[%emt 0:03:24]} 24. Bxd4 {[%emt 0:00:12]} Bxg2 {[%emt 0:01:18]} 25. Kxg2 {[%emt 0:00:09]} Ra8 {[%emt 0:00:16][%cal Of6g4] Inhibits Ba7.} 26. Rc7 {[%emt 0:01:29]} Ne8 {[%emt 0:15:02]} 27. Ra7 {[%emt 0:01:07]} (27. Rxe7 $2 {loses.} Bxd4 28. Nc2 Bf6 $19) 27... Rxa7 {[%emt 0:00:05]} 28. Bxa7 $11 {[%emt 0:00:04][%mdl 4096] [#] Endgame. Black must now prevent Bb6. KBN-KBN} Nc7 {[%emt 0:01:24]} 29. Bb6 {[%emt 0:14:06]} Na6 {[%emt 0:03:25]} 30. Nd5 {[%emt 0:00:30]} Kf8 {[%emt 0:00:10]} 31. Bd8 {[%emt 0:02:16]} e6 {[%emt 0:00:07]} 32. Nf6 {[%emt 0:01:53]} h5 {[%emt 0:06:37]} 33. a4 {[%emt 0:00:54]} b4 {[%emt 0:03:48]} 34. Ne4 {[%emt 0:11:13]} d5 {[%emt 0:00:13]} 35. Nd6 {[%emt 0:01:35]} Be5 {[%emt 0:01:37]} 36. Nb5 {[%emt 0:00:21]} Ke8 {[%emt 0:01:45]} 37. Bb6 {[%emt 0:00:17]} g5 {[%emt 0:00:52]} 38. e3 {[%emt 0:02:26]} g4 {[%emt 0:00:30]} 39. h4 {[%emt 0:00:54] The position is equal.} Kd7 {[%emt 0:01:31]} 40. Kf1 {[%emt 0:01:55]} Bd6 {[%emt 0:02:07]} 41. Ke2 {[%emt 0:14:15]} e5 {[%emt 0:00:21]} 42. Nxd6 {[%emt 0:03:09]} Kxd6 {[%emt 0:00:06] KB-KN} 43. f3 {[%emt 0:04:33]} gxf3+ {[%emt 0:01:22]} 44. Kxf3 {[%emt 0:00:04] [#] Strongly threatening g4.} f5 {[%emt 0:00:05]} 45. Ba5 {[%emt 0:01:13]} Kc6 {[%emt 0:06:44]} 46. Ke2 {[%emt 0:01:10]} Kc5 {[%emt 0:02:06]} 47. Bd8 {[%emt 0:01:41]} Kd6 {[%emt 0:08:09]} 48. Ba5 {[%emt 0:00:52]} Kc6 {[%emt 0:01:06]} 49. Kd1 {[%emt 0:01:53]} Nc5 {[%emt 0:09:25]} 50. Kc2 {[%emt 0:01:02]} Na6 {[%emt 0:00:07]} 51. Kd1 {[%emt 0:00:21]} Kc5 {[%emt 0:00:53]} 52. Bd8 {[%emt 0:00:26]} Kd6 {[%emt 0:01:37]} 53. Ba5 {[%emt 0:00:21]} Kc6 {[%emt 0:00:06]} 54. Kc2 {[%emt 0:02:13]} Kc5 {[%emt 0:00:15]} 55. Bd8 {[%emt 0:00:20]} Kd6 {[%emt 0:03:50] Weighted Error Value: White=0.07 (flawless) /Black=0.05 (flawless) .  Inaccurate:     	White=5     	Black=3      OK:         	White=14    	Black=24     Best:        	White=1     	Black=1} 1/2-1/2